[Event "Early-Titled-Tuesday-Blitz-January-30-2024"]
[Site "Chess.com"]
[Date "2024.01.30"]
[Round "2"]
[White "Casablanca"]
[Black "inneremptiness"]
[Result "0-1"]
[WhiteElo "2569"]
[BlackElo "2855"]
[TimeControl "180+1"]
[EndTime "8:20:41 PST"]
[Termination "inneremptiness won on time"]

1. d4 {[%clk 0:03:00.9]} 1... Nf6 {[%clk 0:02:58.9]} 2. Bg5 {[%clk 0:03:00.7]}
2... Ng8 {[%clk 0:02:54.3]} 3. e4 {[%clk 0:03:00]} 3... c6 {[%clk 0:02:53.3]} 4.
Nf3 {[%clk 0:02:55.1]} 4... d5 {[%clk 0:02:53.2]} 5. exd5 {[%clk 0:02:54.2]}
5... cxd5 {[%clk 0:02:53.6]} 6. c3 {[%clk 0:02:45.3]} 6... Nc6 {[%clk
0:02:53.8]} 7. Bd3 {[%clk 0:02:43.1]} 7... Qc7 {[%clk 0:02:48.6]} 8. h3 {[%clk
0:02:41.2]} 8... e6 {[%clk 0:02:47.9]} 9. Nbd2 {[%clk 0:02:40.9]} 9... Bd6
{[%clk 0:02:47.5]} 10. O-O {[%clk 0:02:36.9]} 10... h6 {[%clk 0:02:38.7]} 11.
Be3 {[%clk 0:02:36.6]} 11... Nf6 {[%clk 0:02:39.3]} 12. Re1 {[%clk 0:02:35.9]}
12... O-O {[%clk 0:02:39.1]} 13. a4 {[%clk 0:02:25.2]} 13... a6 {[%clk
0:02:28.9]} 14. Nb3 {[%clk 0:02:19.6]} 14... Rb8 {[%clk 0:02:25.7]} 15. Nbd2
{[%clk 0:01:52]} 15... Bd7 {[%clk 0:01:53.9]} 16. Qe2 {[%clk 0:01:33.2]} 16...
Rfe8 {[%clk 0:01:50.7]} 17. Rec1 {[%clk 0:00:58.9]} 17... e5 {[%clk 0:01:48.1]}
18. dxe5 {[%clk 0:00:59.2]} 18... Nxe5 {[%clk 0:01:48.3]} 19. Nxe5 {[%clk
0:01:00.1]} 19... Bxe5 {[%clk 0:01:35.8]} 20. Qf3 {[%clk 0:01:00.2]} 20... Rbd8
{[%clk 0:01:16.1]} 21. a5 {[%clk 0:00:56.7]} 21... Qd6 {[%clk 0:01:09.4]} 22.
Bb6 {[%clk 0:00:56.3]} 22... Rc8 {[%clk 0:01:09.1]} 23. Re1 {[%clk 0:00:55.2]}
23... Bc6 {[%clk 0:01:04.3]} 24. Qd1 {[%clk 0:00:44]} 24... Ne4 {[%clk
0:00:53.5]} 25. Bxe4 {[%clk 0:00:35.8]} 25... dxe4 {[%clk 0:00:53.5]} 26. Nc4
{[%clk 0:00:36.3]} 26... Qg6 {[%clk 0:00:31.6]} 27. Nxe5 {[%clk 0:00:36.4]}
27... Rxe5 {[%clk 0:00:32.5]} 28. Re3 {[%clk 0:00:31.3]} 28... Bb5 {[%clk
0:00:27.8]} 29. Rg3 {[%clk 0:00:29.7]} 29... Rg5 {[%clk 0:00:27.1]} 30. Rxg5
{[%clk 0:00:28.5]} 30... hxg5 {[%clk 0:00:27.1]} 31. Qd4 {[%clk 0:00:27.3]}
31... Bd3 {[%clk 0:00:23.1]} 32. Re1 {[%clk 0:00:25.5]} 32... Qf5 {[%clk
0:00:21.7]} 33. Qd6 {[%clk 0:00:24.3]} 33... Re8 {[%clk 0:00:20.4]} 34. Re3
{[%clk 0:00:24.5]} 34... Qe6 {[%clk 0:00:19.2]} 35. Qg3 {[%clk 0:00:21.3]} 35...
f6 {[%clk 0:00:18.6]} 36. Qc7 {[%clk 0:00:20.8]} 36... Re7 {[%clk 0:00:18.3]}
37. Qd8+ {[%clk 0:00:20.6]} 37... Kh7 {[%clk 0:00:17.6]} 38. Qb8 {[%clk
0:00:17.5]} 38... f5 {[%clk 0:00:17.5]} 39. Rg3 {[%clk 0:00:16.8]} 39... Qg6
{[%clk 0:00:08.7]} 40. Qd8 {[%clk 0:00:16.6]} 40... Re8 {[%clk 0:00:07.7]} 41.
Qxg5 {[%clk 0:00:16.6]} 41... Qxg5 {[%clk 0:00:08.3]} 42. Rxg5 {[%clk
0:00:17.5]} 42... g6 {[%clk 0:00:09.2]} 43. h4 {[%clk 0:00:17.7]} 43... Re5
{[%clk 0:00:08.4]} 44. Bd4 {[%clk 0:00:17.8]} 44... Rxa5 {[%clk 0:00:08.3]} 45.
h5 {[%clk 0:00:18.6]} 45... gxh5 {[%clk 0:00:07.3]} 46. Rxh5+ {[%clk 0:00:18]}
46... Kg6 {[%clk 0:00:08.2]} 47. Rh8 {[%clk 0:00:18.6]} 47... Rb5 {[%clk
0:00:08.6]} 48. b4 {[%clk 0:00:18.8]} 48... a5 {[%clk 0:00:09.1]} 49. bxa5
{[%clk 0:00:19.7]} 49... Rxa5 {[%clk 0:00:09.6]} 50. Rg8+ {[%clk 0:00:20.5]}
50... Kh6 {[%clk 0:00:09.3]} 51. Rg7 {[%clk 0:00:21.4]} 51... b5 {[%clk
0:00:08.3]} 52. g3 {[%clk 0:00:20.6]} 52... Ra8 {[%clk 0:00:06.4]} 53. Rb7
{[%clk 0:00:20.8]} 53... Rd8 {[%clk 0:00:06.7]} 54. Be3+ {[%clk 0:00:21.2]}
54... Kg6 {[%clk 0:00:07]} 55. Rb6+ {[%clk 0:00:22.1]} 55... Kf7 {[%clk
0:00:07.2]} 56. Kg2 {[%clk 0:00:22.8]} 56... Rc8 {[%clk 0:00:05.8]} 57. Bd4
{[%clk 0:00:23.3]} 57... Ke7 {[%clk 0:00:06.4]} 58. Rh6 {[%clk 0:00:23.2]} 58...
Rc4 {[%clk 0:00:06.8]} 59. Rh7+ {[%clk 0:00:23.6]} 59... Ke6 {[%clk 0:00:07.4]}
60. Rb7 {[%clk 0:00:24.5]} 60... Rc6 {[%clk 0:00:07.2]} 61. Kh3 {[%clk
0:00:22.7]} 61... Kd5 {[%clk 0:00:07.2]} 62. Kg2 {[%clk 0:00:22.9]} 62... Kc4
{[%clk 0:00:07.3]} 63. Be5 {[%clk 0:00:23]} 63... Re6 {[%clk 0:00:06.9]} 64. Bd4
{[%clk 0:00:22.9]} 64... Kb3 {[%clk 0:00:07.6]} 65. Rf7 {[%clk 0:00:21.2]} 65...
Rd6 {[%clk 0:00:07.7]} 66. Be5 {[%clk 0:00:19.7]} 66... Rd5 {[%clk 0:00:07.7]}
67. Bg7 {[%clk 0:00:16.5]} 67... Kc2 {[%clk 0:00:07.2]} 68. Rb7 {[%clk
0:00:16.4]} 68... Rd8 {[%clk 0:00:07.1]} 69. Rf7 {[%clk 0:00:15.9]} 69... Rg8
{[%clk 0:00:06.5]} 70. Be5 {[%clk 0:00:16.5]} 70... Re8 {[%clk 0:00:06.7]} 71.
Bd4 {[%clk 0:00:16.9]} 71... Kb3 {[%clk 0:00:07.4]} 72. Rxf5 {[%clk 0:00:17]}
72... e3 {[%clk 0:00:07.7]} 73. Re5 {[%clk 0:00:17.1]} 73... Rxe5 {[%clk
0:00:07.7]} 74. Bxe5 {[%clk 0:00:17.9]} 74... e2 {[%clk 0:00:08.4]} 0-1

[Event "Early-Titled-Tuesday-Blitz-January-30-2024"]
[Site "Chess.com"]
[Date "2024.01.30"]
[Round "2"]
[White "Alex_Sahakyan2006"]
[Black "Kunalm64"]
[Result "1-0"]
[WhiteElo "2877"]
[BlackElo "2578"]
[TimeControl "180+1"]
[EndTime "8:20:58 PST"]
[Termination "Alex_Sahakyan2006 won by resignation"]

1. e4 {[%clk 0:03:00.9]} 1... c6 {[%clk 0:02:58.3]} 2. Nc3 {[%clk 0:02:56]} 2...
d5 {[%clk 0:02:58.5]} 3. d4 {[%clk 0:02:56.7]} 3... a6 {[%clk 0:02:55.9]} 4. Nf3
{[%clk 0:02:54.9]} 4... Bg4 {[%clk 0:02:54.8]} 5. h3 {[%clk 0:02:53.8]} 5... Bh5
{[%clk 0:02:53.7]} 6. Bd3 {[%clk 0:02:42.5]} 6... e6 {[%clk 0:02:53.1]} 7. O-O
{[%clk 0:02:35.8]} 7... Nf6 {[%clk 0:02:52.4]} 8. Bg5 {[%clk 0:02:27.2]} 8...
dxe4 {[%clk 0:02:50.6]} 9. Nxe4 {[%clk 0:02:25.1]} 9... Be7 {[%clk 0:02:50.1]}
10. c3 {[%clk 0:02:22.4]} 10... Nxe4 {[%clk 0:02:47.1]} 11. Bxe7 {[%clk
0:02:22.6]} 11... Qxe7 {[%clk 0:02:44.4]} 12. Bxe4 {[%clk 0:02:22.7]} 12... Nd7
{[%clk 0:02:43.7]} 13. Re1 {[%clk 0:02:00.1]} 13... O-O {[%clk 0:02:40.2]} 14.
Bd3 {[%clk 0:01:56]} 14... Nf6 {[%clk 0:02:36]} 15. Re3 {[%clk 0:01:44.2]} 15...
Rfd8 {[%clk 0:02:33.1]} 16. Qc2 {[%clk 0:01:25.4]} 16... Bxf3 {[%clk 0:02:26.3]}
17. Rxf3 {[%clk 0:01:24.9]} 17... c5 {[%clk 0:02:27]} 18. dxc5 {[%clk
0:01:22.9]} 18... Qxc5 {[%clk 0:02:27.1]} 19. Rd1 {[%clk 0:01:22.2]} 19... Rd6
{[%clk 0:02:23]} 20. Be2 {[%clk 0:01:09.1]} 20... Rad8 {[%clk 0:02:21.7]} 21.
Rxd6 {[%clk 0:01:04.4]} 21... Rxd6 {[%clk 0:02:21.1]} 22. Rd3 {[%clk 0:01:03.3]}
22... h6 {[%clk 0:02:12.3]} 23. Bf3 {[%clk 0:01:01.6]} 23... b6 {[%clk
0:02:07.6]} 24. Qd2 {[%clk 0:00:58.7]} 24... Rxd3 {[%clk 0:02:06.7]} 25. Qxd3
{[%clk 0:00:59.6]} 25... a5 {[%clk 0:02:00.5]} 26. Bd1 {[%clk 0:00:56.3]} 26...
g5 {[%clk 0:01:59.1]} 27. a3 {[%clk 0:00:46.5]} 27... Qd5 {[%clk 0:01:37.3]} 28.
Qc2 {[%clk 0:00:36.8]} 28... Qe4 {[%clk 0:01:29.6]} 29. Qxe4 {[%clk 0:00:30.4]}
29... Nxe4 {[%clk 0:01:27.3]} 30. Kf1 {[%clk 0:00:31.3]} 30... Kg7 {[%clk
0:01:13.9]} 31. Ke2 {[%clk 0:00:31.3]} 31... Kf6 {[%clk 0:01:13.4]} 32. Bc2
{[%clk 0:00:25]} 32... Ke5 {[%clk 0:01:13]} 33. Ke3 {[%clk 0:00:20.7]} 33... Nd6
{[%clk 0:01:12.7]} 34. Bd3 {[%clk 0:00:16.7]} 34... f6 {[%clk 0:01:05]} 35. g3
{[%clk 0:00:16.4]} 35... Kd5 {[%clk 0:00:55.8]} 36. b3 {[%clk 0:00:11]} 36... e5
{[%clk 0:00:45.3]} 37. g4 {[%clk 0:00:03.8]} 37... b5 {[%clk 0:00:44]} 38. f3
{[%clk 0:00:02.8]} 38... a4 {[%clk 0:00:39.9]} 39. bxa4 {[%clk 0:00:01.8]} 39...
bxa4 {[%clk 0:00:38.7]} 40. Bc2 {[%clk 0:00:02.4]} 40... Nc4+ {[%clk 0:00:37.8]}
41. Kd3 {[%clk 0:00:03]} 41... Kc5 {[%clk 0:00:33.1]} 42. Ke4 {[%clk 0:00:01.6]}
42... Nd6+ {[%clk 0:00:25]} 43. Ke3 {[%clk 0:00:02]} 43... Nc4+ {[%clk
0:00:21.9]} 44. Kd3 {[%clk 0:00:02.4]} 44... Kd5 {[%clk 0:00:16.3]} 45. Ke2
{[%clk 0:00:02.3]} 45... Kc5 {[%clk 0:00:14.8]} 46. Bxa4 {[%clk 0:00:02.6]}
46... Nxa3 {[%clk 0:00:15.1]} 47. Kd3 {[%clk 0:00:02.2]} 47... Nc4 {[%clk
0:00:14.4]} 48. Bb3 {[%clk 0:00:01.7]} 48... Nd6 {[%clk 0:00:14]} 49. Be6 {[%clk
0:00:02]} 49... Kc6 {[%clk 0:00:13.9]} 50. Kc2 {[%clk 0:00:01.7]} 50... Kc5
{[%clk 0:00:14.1]} 51. Kd3 {[%clk 0:00:02.3]} 51... Kb5 {[%clk 0:00:13.7]} 52.
Bg8 {[%clk 0:00:02.3]} 52... Kc6 {[%clk 0:00:13.4]} 53. c4 {[%clk 0:00:02.3]}
53... Kc5 {[%clk 0:00:13.4]} 54. Bd5 {[%clk 0:00:02.6]} 54... Kb4 {[%clk
0:00:13.1]} 55. Be6 {[%clk 0:00:02.6]} 55... e4+ {[%clk 0:00:12.2]} 56. fxe4
{[%clk 0:00:02.5]} 56... Kc5 {[%clk 0:00:12.4]} 57. Bd5 {[%clk 0:00:02.1]} 57...
Nc8 {[%clk 0:00:11.8]} 58. e5 {[%clk 0:00:02.4]} 58... fxe5 {[%clk 0:00:11.5]}
59. Ke4 {[%clk 0:00:03.1]} 59... Ne7 {[%clk 0:00:07.4]} 60. Kxe5 {[%clk
0:00:03]} 60... Ng6+ {[%clk 0:00:07.8]} 61. Kf6 {[%clk 0:00:02.6]} 61... Nf4
{[%clk 0:00:08.2]} 62. Kg7 {[%clk 0:00:02.9]} 62... Nxh3 {[%clk 0:00:08.3]} 63.
Kxh6 {[%clk 0:00:03.5]} 63... Kd4 {[%clk 0:00:05.6]} 64. Kg6 {[%clk 0:00:04.1]}
64... Ke5 {[%clk 0:00:05.4]} 65. Bb7 {[%clk 0:00:03.8]} 65... Kd4 {[%clk
0:00:05.3]} 66. Bd5 {[%clk 0:00:02.4]} 66... Ke5 {[%clk 0:00:05.3]} 67. Bg8
{[%clk 0:00:02.7]} 67... Kd4 {[%clk 0:00:04.9]} 68. Kf5 {[%clk 0:00:02.5]} 68...
Kc5 {[%clk 0:00:04.7]} 69. Bd5 {[%clk 0:00:02.6]} 69... Kd4 {[%clk 0:00:04.8]}
70. Bg2 {[%clk 0:00:03]} 70... Nf4 {[%clk 0:00:04.1]} 71. Bf1 {[%clk 0:00:03.6]}
71... Ne6 {[%clk 0:00:03.6]} 72. Kxe6 {[%clk 0:00:03.7]} 72... Kc5 {[%clk
0:00:03.7]} 73. Kf5 {[%clk 0:00:04]} 73... Kd4 {[%clk 0:00:04]} 74. Kxg5 {[%clk
0:00:04.6]} 74... Kc5 {[%clk 0:00:04.8]} 75. Kh6 {[%clk 0:00:05.1]} 75... Kd4
{[%clk 0:00:05.7]} 76. g5 {[%clk 0:00:06]} 76... Kc5 {[%clk 0:00:06.6]} 77. g6
{[%clk 0:00:06.9]} 77... Kd6 {[%clk 0:00:07.5]} 78. g7 {[%clk 0:00:07.8]} 78...
Kc5 {[%clk 0:00:08.4]} 79. g8=Q {[%clk 0:00:08.2]} 79... Kd4 {[%clk 0:00:09.3]}
80. Qd5+ {[%clk 0:00:08.6]} 80... Kc3 {[%clk 0:00:08.9]} 81. c5 {[%clk
0:00:08.9]} 1-0

[Event "Early-Titled-Tuesday-Blitz-January-30-2024"]
[Site "Chess.com"]
[Date "2024.01.30"]
[Round "2"]
[White "Defend1r"]
[Black "Arlo2024"]
[Result "1/2-1/2"]
[WhiteElo "2530"]
[BlackElo "2308"]
[TimeControl "180+1"]
[EndTime "8:21:11 PST"]
[Termination "Game drawn - insufficient material"]

1. Nf3 {[%clk 0:02:59.2]} 1... Nf6 {[%clk 0:02:59.2]} 2. c4 {[%clk 0:02:58.7]}
2... c5 {[%clk 0:02:59.5]} 3. b3 {[%clk 0:02:57.9]} 3... Nc6 {[%clk 0:03:00.2]}
4. Bb2 {[%clk 0:02:58.3]} 4... e6 {[%clk 0:02:59.9]} 5. e3 {[%clk 0:02:54]} 5...
Be7 {[%clk 0:02:59.9]} 6. d4 {[%clk 0:02:53.6]} 6... cxd4 {[%clk 0:02:59.8]} 7.
Nxd4 {[%clk 0:02:53]} 7... Nxd4 {[%clk 0:02:58.2]} 8. Qxd4 {[%clk 0:02:51.7]}
8... O-O {[%clk 0:02:53.9]} 9. Nc3 {[%clk 0:02:49.7]} 9... d6 {[%clk 0:02:36.2]}
10. Be2 {[%clk 0:02:39.5]} 10... a6 {[%clk 0:02:35.6]} 11. Bf3 {[%clk
0:02:38.5]} 11... Qc7 {[%clk 0:02:33]} 12. O-O {[%clk 0:02:35.3]} 12... Bd7
{[%clk 0:02:30.7]} 13. Rac1 {[%clk 0:02:30]} 13... Bc6 {[%clk 0:02:29.8]} 14.
Nd5 {[%clk 0:02:27]} 14... Qd7 {[%clk 0:01:44.9]} 15. Nb6 {[%clk 0:02:19.5]}
15... Qc7 {[%clk 0:01:43.4]} 16. Nxa8 {[%clk 0:02:19.2]} 16... Rxa8 {[%clk
0:01:42.7]} 17. Bxc6 {[%clk 0:02:18.4]} 17... Qxc6 {[%clk 0:01:39]} 18. Rfd1
{[%clk 0:02:05.8]} 18... Bf8 {[%clk 0:01:19.1]} 19. Ba3 {[%clk 0:01:55.9]} 19...
Ne8 {[%clk 0:01:12.4]} 20. Qh4 {[%clk 0:01:51.9]} 20... b6 {[%clk 0:01:10.9]}
21. Qg3 {[%clk 0:01:31.5]} 21... a5 {[%clk 0:01:10.1]} 22. h4 {[%clk 0:01:29.5]}
22... Rc8 {[%clk 0:01:03]} 23. h5 {[%clk 0:01:29.4]} 23... h6 {[%clk 0:01:01.8]}
24. Qh4 {[%clk 0:01:26.2]} 24... Nf6 {[%clk 0:00:52.6]} 25. Bb2 {[%clk
0:01:24.7]} 25... Ne8 {[%clk 0:00:52.1]} 26. e4 {[%clk 0:01:20.4]} 26... a4
{[%clk 0:00:47.5]} 27. e5 {[%clk 0:01:19]} 27... dxe5 {[%clk 0:00:44.6]} 28.
Bxe5 {[%clk 0:01:15.3]} 28... axb3 {[%clk 0:00:44]} 29. axb3 {[%clk 0:01:16.2]}
29... Qc5 {[%clk 0:00:41.8]} 30. Bd4 {[%clk 0:01:09.5]} 30... Qb4 {[%clk
0:00:41.7]} 31. Rd3 {[%clk 0:01:04.1]} 31... Be7 {[%clk 0:00:38.9]} 32. Qg4
{[%clk 0:01:03.1]} 32... Nf6 {[%clk 0:00:37.1]} 33. Bxf6 {[%clk 0:01:03.1]}
33... Bxf6 {[%clk 0:00:38]} 34. Qd1 {[%clk 0:00:57.3]} 34... Qc5 {[%clk
0:00:36.1]} 35. Qf3 {[%clk 0:00:43.3]} 35... Qg5 {[%clk 0:00:31.8]} 36. Rcd1
{[%clk 0:00:41.2]} 36... Rc5 {[%clk 0:00:24.2]} 37. Qe4 {[%clk 0:00:34.5]} 37...
Re5 {[%clk 0:00:20.6]} 38. Qa8+ {[%clk 0:00:33.9]} 38... Kh7 {[%clk 0:00:20]}
39. Rh3 {[%clk 0:00:27.5]} 39... Be7 {[%clk 0:00:19.5]} 40. Qf3 {[%clk
0:00:23.3]} 40... Bc5 {[%clk 0:00:19.7]} 41. Qxf7 {[%clk 0:00:20.9]} 41... Rf5
{[%clk 0:00:19.2]} 42. Qg6+ {[%clk 0:00:20.2]} 42... Qxg6 {[%clk 0:00:18.6]} 43.
hxg6+ {[%clk 0:00:21.1]} 43... Kxg6 {[%clk 0:00:18.2]} 44. Rd2 {[%clk
0:00:20.4]} 44... Re5 {[%clk 0:00:16.9]} 45. g3 {[%clk 0:00:15.5]} 45... Re1+
{[%clk 0:00:16.7]} 46. Kg2 {[%clk 0:00:15.8]} 46... Rb1 {[%clk 0:00:17.6]} 47.
g4 {[%clk 0:00:16.1]} 47... Kg5 {[%clk 0:00:17.7]} 48. Rg3 {[%clk 0:00:16.5]}
48... e5 {[%clk 0:00:17.4]} 49. Re2 {[%clk 0:00:13.9]} 49... Bd4 {[%clk
0:00:17.5]} 50. Rf3 {[%clk 0:00:06.4]} 50... g6 {[%clk 0:00:17.5]} 51. Re4
{[%clk 0:00:05.5]} 51... Rb2 {[%clk 0:00:16.4]} 52. Kg3 {[%clk 0:00:04.5]} 52...
Rb1 {[%clk 0:00:13.8]} 53. Re2 {[%clk 0:00:03.7]} 53... Rg1+ {[%clk 0:00:12.2]}
54. Kh2 {[%clk 0:00:04.1]} 54... Rxg4 {[%clk 0:00:11.9]} 55. Rg3 {[%clk
0:00:04.6]} 55... h5 {[%clk 0:00:09.1]} 56. Rxg4+ {[%clk 0:00:04.4]} 56... Kxg4
{[%clk 0:00:10]} 57. Kg2 {[%clk 0:00:04.7]} 57... g5 {[%clk 0:00:10.2]} 58. Ra2
{[%clk 0:00:04.8]} 58... h4 {[%clk 0:00:09]} 59. b4 {[%clk 0:00:05.2]} 59... h3+
{[%clk 0:00:07.8]} 60. Kh2 {[%clk 0:00:05.7]} 60... Kf4 {[%clk 0:00:05.7]} 61.
Rc2 {[%clk 0:00:05.7]} 61... g4 {[%clk 0:00:04]} 62. c5 {[%clk 0:00:05.8]} 62...
bxc5 {[%clk 0:00:03.8]} 63. bxc5 {[%clk 0:00:06.7]} 63... Kf3 {[%clk 0:00:02.6]}
64. c6 {[%clk 0:00:06.4]} 64... Bxf2 {[%clk 0:00:03.3]} 65. Rxf2+ {[%clk
0:00:04.8]} 65... Kxf2 {[%clk 0:00:02.2]} 66. c7 {[%clk 0:00:05.7]} 66... g3+
{[%clk 0:00:03]} 67. Kxh3 {[%clk 0:00:05.9]} 67... g2 {[%clk 0:00:03.9]} 68.
c8=Q {[%clk 0:00:06.3]} 68... g1=Q {[%clk 0:00:04.4]} 69. Qc5+ {[%clk
0:00:05.6]} 69... Kf1 {[%clk 0:00:04.4]} 70. Qc4+ {[%clk 0:00:05.5]} 70... Kf2
{[%clk 0:00:04]} 71. Qc2+ {[%clk 0:00:05.6]} 71... Kf1 {[%clk 0:00:03.8]} 72.
Qf5+ {[%clk 0:00:04.9]} 72... Qf2 {[%clk 0:00:03]} 73. Qxe5 {[%clk 0:00:04.7]}
73... Qg2+ {[%clk 0:00:02.7]} 74. Kh4 {[%clk 0:00:05.1]} 74... Qf2+ {[%clk
0:00:02.4]} 75. Kh3 {[%clk 0:00:05.1]} 75... Qg2+ {[%clk 0:00:02.5]} 76. Kh4
{[%clk 0:00:05.5]} 76... Qf2+ {[%clk 0:00:03.1]} 77. Kg5 {[%clk 0:00:05.9]}
77... Qg2+ {[%clk 0:00:03.4]} 78. Kh6 {[%clk 0:00:05.8]} 78... Qf2 {[%clk
0:00:04.3]} 79. Qb5+ {[%clk 0:00:05.3]} 79... Qe2 {[%clk 0:00:04]} 80. Qa5
{[%clk 0:00:05]} 80... Qh2+ {[%clk 0:00:03.2]} 81. Kg7 {[%clk 0:00:05.1]} 81...
Qg2+ {[%clk 0:00:03.6]} 82. Kf7 {[%clk 0:00:05.4]} 82... Qf2+ {[%clk 0:00:04.5]}
83. Ke7 {[%clk 0:00:05.9]} 83... Qe2+ {[%clk 0:00:05.1]} 84. Kd8 {[%clk
0:00:06.5]} 84... Qd1+ {[%clk 0:00:05.5]} 85. Kc7 {[%clk 0:00:06.7]} 85... Qc2+
{[%clk 0:00:05.8]} 86. Kb7 {[%clk 0:00:07.1]} 86... Qb3+ {[%clk 0:00:06.1]} 87.
Ka8 {[%clk 0:00:06.3]} 87... Qg8+ {[%clk 0:00:05.8]} 88. Kb7 {[%clk 0:00:06.3]}
88... Qf7+ {[%clk 0:00:06.4]} 89. Kc8 {[%clk 0:00:06.1]} 89... Qe8+ {[%clk
0:00:06.7]} 90. Kc7 {[%clk 0:00:06.3]} 90... Qe7+ {[%clk 0:00:06.9]} 91. Kc6
{[%clk 0:00:06.8]} 91... Qe6+ {[%clk 0:00:07.3]} 92. Kb7 {[%clk 0:00:07.2]}
92... Qd7+ {[%clk 0:00:07.4]} 93. Qc7 {[%clk 0:00:07]} 93... Qxc7+ {[%clk
0:00:07.3]} 94. Kxc7 {[%clk 0:00:07.9]} 1/2-1/2